[Event "AUT-ch 2018"]
[Site "Vienna"]
[Date "2018.07.25"]
[Round "5"]
[White "Jedinger, Andreas"]
[Black "Prüll, Lukas"]
[Result "1-0"]
[ECO "C81"]
[WhiteElo "2090"]
[BlackElo "2090"]
[Annotator "NA"]
[PlyCount "89"]
[EventDate "2018.07.22"]
[EventType "swiss"]
[EventCountry "AUT"]
[SourceTitle "playchess.com"]
[Source "ChessBase"]
[SourceQuality "1"]
[TimeControl "40/5400+30:1800+30"]

1. e4 {[%emt 0:00:00]} e5 {[%emt 0:00:00]} 2. Nf3 {[%emt 0:00:00]} Nc6 {[%emt 0:00:00]} 3. Bb5 {[%emt 0:00:00]} a6 {[%emt 0:00:00]} 4. Ba4 {[%emt 0:00:00]} Nf6 {[%emt 0:00:05]} 5. O-O {[%emt 0:00:00]} Nxe4 {[%emt 0:00:07]} 6. d4 {[%emt 0:00:22]} b5 {[%emt 0:00:08]} 7. Bb3 {[%emt 0:00:03]} d5 {[%emt 0:00:07]} 8. dxe5 {[%emt 0:00:05]} Be6 {[%emt 0:00:05]} 9. Qe2 {[%emt 0:01:38]} Be7 {[%emt 0:04:12]} 10. Rd1 {[%emt 0:00:09]} O-O {[%emt 0:02:04]} 11. c4 {[%emt 0:00:07]} bxc4 {[%emt 0:00:11]} 12. Bxc4 {[%emt 0:00:05]} Nc5 {[%emt 0:01:59]} 13. Nc3 {[%emt 0:08:10]} d4 {[%emt 0:02:05]} 14. Bxe6 {[%emt 0:01:14]} Nxe6 {[%emt 0:01:25]} 15. Be3 {[%emt 0:16:50]} Qd7 {[%emt 0:16:39]} 16. Rac1 {[%emt 0:10:50]} f6 {[%emt 0:02:01]} 17. exf6 {[%emt 0:01:09]} Rxf6 {[%emt 0:02:09]} 18. Nxd4 {[%emt 0:06:01]} Nexd4 {[%emt 0:16:19]} 19. Bxd4 {[%emt 0:00:14]} Nxd4 {[%emt 0:03:12]} 20. Qc4+ {[%emt 0:00:10]} Kh8 {[%emt 0:00:34]} 21. Qxd4 {[%emt 0:04:33]} Bd6 {[%emt 0:07:31]} 22. Ne4 {[%emt 0:08:30]} Re6 {[%emt 0:00:28]} 23. Nxd6 {[%emt 0:05:18]} Rxd6 {[%emt 0:00:14]} 24. Rxc7 {[%emt 0:00:06]} Qxc7 {[%emt 0:02:42]} 25. Qxd6 {[%emt 0:00:05]} Qxd6 {[%emt 0:00:43]} 26. Rxd6 {[%emt 0:00:07]} Kg8 {[%emt 0:00:05]} 27. Kf1 {[%emt 0:00:10]} a5 {[%emt 0:01:07]} 28. Ke2 {[%emt 0:01:53]} Rb8 {[%emt 0:01:18]} 29. b3 {[%emt 0:00:11]} Kf7 {[%emt 0:03:31]} 30. Ra6 {[%emt 0:00:46]} Rb5 {[%emt 0:00:07]} 31. Kd3 {[%emt 0:00:29]} Rc5 {[%emt 0:00:50]} 32. f4 {[%emt 0:02:45]} Rf5 {[%emt 0:01:40]} 33. g3 {[%emt 0:00:20]} Rd5+ {[%emt 0:01:42]} 34. Kc4 {[%emt 0:00:45]} Rd2 {[%emt 0:00:53]} 35. Rxa5 {[%emt 0:00:06]} Rxh2 {[%emt 0:00:10]} 36. a4 {[%emt 0:00:21]} Rg2 {[%emt 0:00:43]} 37. b4 {[%emt 0:10:30]} Rxg3 {[%emt 0:04:05]} 38. b5 {[%emt 0:00:07]} Rg6 {[%emt 0:00:44]} 39. Ra7+ {[%emt 0:01:28]} Ke8 {[%emt 0:00:30]} 40. a5 {[%emt 0:06:25]} Kd8 {[%emt 0:01:49]} 41. b6 {[%emt 0:30:07]} Kc8 {[%emt 0:31:45]} 42. Kb5 {[%emt 0:00:17]} Kb8 {[%emt 0:02:40]} 43. Rf7 {[%emt 0:00:10]} Rf6 {[%emt 0:00:53]} 44. Rxg7 {[%emt 0:02:36]} Rf5+ {[%emt 0:02:17]} 45. Ka6 {[%emt 0:00:05]} 1-0

[Event "AUT-ch 2018"]
[Site "Vienna"]
[Date "2018.07.25"]
[Round "5"]
[White "Hatzl, Johannes"]
[Black "Jakits, Leopold"]
[Result "1/2-1/2"]
[ECO "B18"]
[WhiteElo "2068"]
[BlackElo "2161"]
[Annotator "NA"]
[PlyCount "66"]
[EventDate "2018.07.22"]
[EventType "swiss"]
[EventCountry "AUT"]
[SourceTitle "playchess.com"]
[Source "ChessBase"]
[SourceQuality "1"]
[TimeControl "40/5400+30:1800+30"]

1. e4 {[%emt 0:00:00]} c6 {[%emt 0:00:00]} 2. d4 {[%emt 0:00:00]} d5 {[%emt 0:00:21]} 3. Nc3 {[%emt 0:00:23]} dxe4 {[%emt 0:00:42]} 4. Nxe4 {[%emt 0:00:09]} Bf5 {[%emt 0:00:03]} 5. Ng3 {[%emt 0:00:19]} Bg6 {[%emt 0:00:01]} 6. h4 {[%emt 0:00:30]} h6 {[%emt 0:00:16]} 7. Nh3 {[%emt 0:01:14]} e6 {[%emt 0:01:00]} 8. Nf4 {[%emt 0:01:37]} Bh7 {[%emt 0:00:10]} 9. Bc4 {[%emt 0:01:22]} Nf6 {[%emt 0:00:27]} 10. O-O {[%emt 0:01:58]} Bd6 {[%emt 0:00:33]} 11. Ngh5 {[%emt 0:07:47]} O-O {[%emt 0:04:12]} 12. Re1 {[%emt 0:03:52]} Nxh5 {[%emt 0:10:38]} 13. Nxh5 {[%emt 0:00:46]} Qxh4 {[%emt 0:00:42]} 14. g3 {[%emt 0:01:20]} Qe7 {[%emt 0:19:41]} 15. Qg4 {[%emt 0:01:42]} g5 {[%emt 0:00:13]} 16. Bf4 {[%emt 0:07:11]} Bf5 {[%emt 0:06:52]} 17. Bxd6 {[%emt 0:12:04]} Qxd6 {[%emt 0:00:02]} 18. Nf6+ {[%emt 0:01:05]} Kg7 {[%emt 0:02:23]} 19. Nh5+ {[%emt 0:01:23]} Kg8 {[%emt 0:13:33]} 20. Nf6+ {[%emt 0:03:40]} Kg7 {[%emt 0:00:10]} 21. Nh5+ {[%emt 0:00:05]} Kh8 {[%emt 0:00:06]} 22. Qf3 {[%emt 0:06:26]} Nd7 {[%emt 0:08:40]} 23. c3 {[%emt 0:06:38]} Bg6 {[%emt 0:04:17]} 24. Nf6 {[%emt 0:01:45]} Kg7 {[%emt 0:03:14]} 25. Nxd7 {[%emt 0:00:40]} Qxd7 {[%emt 0:00:03]} 26. Re5 {[%emt 0:02:47]} Rad8 {[%emt 0:08:39]} 27. Rae1 {[%emt 0:00:28]} Qc7 {[%emt 0:00:39]} 28. Bb3 {[%emt 0:05:36]} Qb6 {[%emt 0:01:16]} 29. R1e2 {[%emt 0:01:29]} Qa6 {[%emt 0:01:40]} 30. Qg4 {[%emt 0:03:46]} Bf5 {[%emt 0:06:26]} 31. Qh5 {[%emt 0:01:30]} Bg6 {[%emt 0:00:42]} 32. Qg4 {[%emt 0:00:03]} Bf5 {[%emt 0:03:13]} 33. Qh5 {[%emt 0:00:05]} Bg6 {[%emt 0:01:17]} 1/2-1/2

[Event "AUT-ch 2018"]
[Site "Vienna"]
[Date "2018.07.25"]
[Round "5"]
[White "Niedersberger, Andreas"]
[Black "Steiner, Bruno"]
[Result "0-1"]
[ECO "C55"]
[WhiteElo "2058"]
[BlackElo "2194"]
[Annotator "NA"]
[PlyCount "67"]
[EventDate "2018.07.22"]
[EventType "swiss"]
[EventCountry "AUT"]
[SourceTitle "playchess.com"]
[Source "ChessBase"]
[SourceQuality "1"]
[TimeControl "40/5400+30:1800+30"]

1. e4 {[%emt 0:00:00]} e5 {[%emt 0:00:00]} 2. Nf3 {[%emt 0:00:00]} Nc6 {[%emt 0:07:07]} 3. Bc4 {[%emt 0:00:00]} Nf6 {[%emt 0:00:12]} 4. d3 {[%emt 0:00:09]} Be7 {[%emt 0:00:25]} 5. O-O {[%emt 0:01:18]} d6 {[%emt 0:03:06]} 6. Re1 {[%emt 0:03:44]} Na5 {[%emt 0:05:37]} 7. Bb5+ {[%emt 0:01:34]} c6 {[%emt 0:14:34]} 8. Ba4 {[%emt 0:00:05]} b5 {[%emt 0:00:12]} 9. Bb3 {[%emt 0:00:04]} O-O {[%emt 0:01:04]} 10. h3 {[%emt 0:02:16]} h6 {[%emt 0:10:29]} 11. Be3 {[%emt 0:02:39]} Qc7 {[%emt 0:07:02]} 12. c3 {[%emt 0:13:05]} Nxb3 {[%emt 0:06:02]} 13. Qxb3 {[%emt 0:01:31]} Be6 {[%emt 0:00:27]} 14. Qc2 {[%emt 0:01:58]} Nd7 {[%emt 0:03:22]} 15. Qe2 {[%emt 0:17:19]} f5 {[%emt 0:01:01]} 16. exf5 {[%emt 0:02:44]} Rxf5 {[%emt 0:02:29]} 17. Nbd2 {[%emt 0:01:36]} Raf8 {[%emt 0:11:34]} 18. a4 {[%emt 0:01:27]} bxa4 {[%emt 0:04:09]} 19. Rxa4 {[%emt 0:00:12]} Nb6 {[%emt 0:00:15]} 20. Ra6 {[%emt 0:02:39]} c5 {[%emt 0:01:47]} 21. Rea1 {[%emt 0:01:24]} Nc8 {[%emt 0:00:33]} 22. d4 {[%emt 0:03:13]} exd4 {[%emt 0:03:13]} 23. cxd4 {[%emt 0:02:26]} Bd5 {[%emt 0:00:19]} 24. dxc5 {[%emt 0:01:20]} dxc5 {[%emt 0:02:02]} 25. Ne1 {[%emt 0:08:35]} Kh8 {[%emt 0:00:55]} 26. Qd3 {[%emt 0:02:23]} c4 {[%emt 0:05:18]} 27. Qd4 {[%emt 0:02:48]} Bf6 {[%emt 0:01:17]} 28. Rxf6 {[%emt 0:00:27]} R8xf6 {[%emt 0:01:08]} 29. g4 {[%emt 0:00:24]} Re5 {[%emt 0:02:24]} 30. Nc2 {[%emt 0:03:42]} Bg8 {[%emt 0:01:05]} 31. f4 {[%emt 0:03:43]} Re8 {[%emt 0:00:41]} 32. Nf3 {[%emt 0:01:37]} Rd6 {[%emt 0:02:05]} 33. Qc5 {[%emt 0:01:47]} Qb7 {[%emt 0:00:43]} 34. Ncd4 {[%emt 0:02:33]} 0-1

[Event "AUT-ch 2018"]
[Site "Vienna"]
[Date "2018.07.25"]
[Round "5"]
[White "Feit, Florian"]
[Black "Hupfer, Robert"]
[Result "0-1"]
[ECO "E06"]
[WhiteElo "2012"]
[BlackElo "2122"]
[Annotator "NA"]
[PlyCount "82"]
[EventDate "2018.07.22"]
[EventType "swiss"]
[EventCountry "AUT"]
[SourceTitle "playchess.com"]
[Source "ChessBase"]
[SourceQuality "1"]
[TimeControl "40/5400+30:1800+30"]

1. d4 {[%emt 0:00:00]} d5 {[%emt 0:00:00]} 2. Nf3 {[%emt 0:00:00]} e6 {[%emt 0:00:09]} 3. g3 {[%emt 0:00:27]} Nf6 {[%emt 0:00:07]} 4. c4 {[%emt 0:00:52]} Be7 {[%emt 0:03:02]} 5. Bg2 {[%emt 0:04:22]} O-O {[%emt 0:00:07]} 6. O-O {[%emt 0:00:26]} dxc4 {[%emt 0:04:44]} 7. Qc2 {[%emt 0:05:15]} a6 {[%emt 0:02:03]} 8. a4 {[%emt 0:06:03]} Nbd7 {[%emt 0:09:16]} 9. e4 {[%emt 0:06:30]} c5 {[%emt 0:15:33]} 10. e5 {[%emt 0:02:42]} Nd5 {[%emt 0:00:22]} 11. dxc5 {[%emt 0:01:05]} Nxc5 {[%emt 0:04:34]} 12. Qxc4 {[%emt 0:05:40]} b5 {[%emt 0:05:49]} 13. Qg4 {[%emt 0:02:45]} f5 {[%emt 0:02:43]} 14. exf6 {[%emt 0:12:54]} Nxf6 {[%emt 0:00:50]} 15. Qd4 {[%emt 0:06:14]} Bb7 {[%emt 0:14:11]} 16. Qxd8 {[%emt 0:03:57]} Rfxd8 {[%emt 0:03:31]} 17. axb5 {[%emt 0:01:50]} axb5 {[%emt 0:01:11]} 18. Rxa8 {[%emt 0:00:09]} Bxa8 {[%emt 0:00:58]} 19. Na3 {[%emt 0:03:42]} b4 {[%emt 0:01:55]} 20. Nc4 {[%emt 0:00:09]} Nd3 {[%emt 0:04:54]} 21. Nce5 {[%emt 0:04:14]} Bxf3 {[%emt 0:03:58]} 22. Nxf3 {[%emt 0:00:02]} Rc8 {[%emt 0:05:12]} 23. Be3 {[%emt 0:03:57]} Nxb2 {[%emt 0:00:15]} 24. Nd4 {[%emt 0:02:54]} e5 {[%emt 0:03:57]} 25. Nc6 {[%emt 0:07:04]} Bd6 {[%emt 0:01:40]} 26. Rb1 {[%emt 0:03:20]} Nd3 {[%emt 0:03:22]} 27. Bd2 {[%emt 0:05:30]} e4 {[%emt 0:00:22]} 28. Nd4 {[%emt 0:04:48]} Rc4 {[%emt 0:00:51]} 29. Nf5 {[%emt 0:00:43]} Bc5 {[%emt 0:00:17]} 30. Ne3 {[%emt 0:00:18]} Bxe3 {[%emt 0:00:46]} 31. Bxe3 {[%emt 0:00:36]} Nd5 {[%emt 0:01:05]} 32. Rb3 {[%emt 0:02:36]} Nxe3 {[%emt 0:00:27]} 33. fxe3 {[%emt 0:00:01]} Nc5 {[%emt 0:00:23]} 34. Rb1 {[%emt 0:00:48]} b3 {[%emt 0:00:24]} 35. h4 {[%emt 0:02:08]} Kf7 {[%emt 0:00:44]} 36. Kf2 {[%emt 0:00:23]} Rc2+ {[%emt 0:00:27]} 37. Kg1 {[%emt 0:00:37]} b2 {[%emt 0:00:07]} 38. Kh2 {[%emt 0:00:27]} Kf6 {[%emt 0:00:28]} 39. Kh3 {[%emt 0:00:09]} Ke5 {[%emt 0:00:10]} 40. Bf1 {[%emt 0:01:04]} Na4 {[%emt 0:00:50]} 41. Bb5 {[%emt 0:31:46]} Rc1 {[%emt 0:30:39]} 0-1

[Event "AUT-ch 2018"]
[Site "Vienna"]
[Date "2018.07.26"]
[Round "6"]
[White "Dragnev, Valentin"]
[Black "Blohberger, Felix"]
[Result "1-0"]
[ECO "D96"]
[WhiteElo "2499"]
[BlackElo "2420"]
[Annotator "ChessBase"]
[PlyCount "69"]
[EventDate "2018.07.22"]
[EventType "swiss"]
[EventCountry "AUT"]
[SourceTitle "playchess.com"]
[Source "ChessBase"]
[SourceQuality "1"]
[TimeControl "40/5400+30:1800+30"]

1. d4 {[%emt 0:00:00]} Nf6 {[%emt 0:00:22]} 2. c4 {[%emt 0:00:00]} c6 {[%emt 0:00:15]} 3. Nc3 {[%emt 0:00:56]} d5 {[%emt 0:00:13]} 4. Nf3 {[%emt 0:00:05]} g6 {[%emt 0:00:25]} 5. cxd5 {[%emt 0:01:39]} cxd5 {[%emt 0:00:38]} 6. Bf4 {[%emt 0:00:09]} Bg7 {[%emt 0:00:12]} 7. e3 {[%emt 0:00:09]} O-O {[%emt 0:00:12]} 8. h3 {[%emt 0:01:29]} Qb6 {[%emt 0:01:05]} 9. a3 {[%emt 0:10:11]} Bd7 {[%emt 0:01:27]} 10. Rb1 {[%emt 0:21:04]} Bf5 {[%emt 0:19:27]} 11. Na4 {[%emt 0:02:39]} Qd8 {[%emt 0:03:42]} 12. Rc1 {[%emt 0:01:08]} Nc6 {[%emt 0:03:22]} 13. Be2 {[%emt 0:02:21]} Rc8 {[%emt 0:02:51]} 14. b4 {[%emt 0:09:45]} Nb8 {[%emt 0:28:07]} 15. O-O {[%emt 0:02:47]} Rxc1 {[%emt 0:03:16]} 16. Qxc1 {[%emt 0:00:05]} Nbd7 {[%emt 0:00:38]} 17. Bh2 {[%emt 0:19:01]} Qa8 {[%emt 0:05:34]} 18. Qb2 {[%emt 0:03:29]} Rc8 {[%emt 0:00:59]} 19. Rc1 {[%emt 0:00:10]} Nf8 {[%emt 0:07:59]} 20. Nc5 {[%emt 0:01:25]} N6d7 {[%emt 0:01:45]} 21. g4 {[%emt 0:03:48]} Be6 {[%emt 0:05:48]} 22. Rc2 {[%emt 0:01:54]} Nxc5 {[%emt 0:01:54]} 23. bxc5 {[%emt 0:00:26]} b6 {[%emt 0:00:47]} 24. Qc1 {[%emt 0:02:07]} bxc5 {[%emt 0:01:40]} 25. dxc5 {[%emt 0:00:08]} Qc6 {[%emt 0:04:39]} 26. Nd4 {[%emt 0:00:55]} Qa4 {[%emt 0:00:43]} 27. Bb5 {[%emt 0:06:56]} Qa5 {[%emt 0:00:12]} 28. Bf1 {[%emt 0:00:24]} Qa4 {[%emt 0:02:09]} 29. c6 {[%emt 0:03:16]} f5 {[%emt 0:03:24]} 30. Nxe6 {[%emt 0:02:58]} Nxe6 {[%emt 0:00:05]} 31. Bg2 {[%emt 0:00:09]} Qa5 {[%emt 0:01:30]} 32. Rd2 {[%emt 0:00:43]} d4 {[%emt 0:00:38]} 33. exd4 {[%emt 0:02:14]} f4 {[%emt 0:00:29]} 34. Qc4 {[%emt 0:00:38]} Kf7 {[%emt 0:00:26]} 35. Re2 {[%emt 0:00:15]} 1-0

[Event "AUT-ch 2018"]
[Site "Vienna"]
[Date "2018.07.26"]
[Round "6"]
[White "Schreiner, Peter"]
[Black "Wallner, Joachim"]
[Result "1-0"]
[ECO "A06"]
[WhiteElo "2467"]
[BlackElo "2311"]
[Annotator "ChessBase"]
[PlyCount "57"]
[EventDate "2018.07.22"]
[EventType "swiss"]
[EventCountry "AUT"]
[SourceTitle "playchess.com"]
[Source "ChessBase"]
[SourceQuality "1"]
[TimeControl "40/5400+30:1800+30"]

1. Nf3 {[%emt 0:00:00]} d5 {[%emt 0:00:27]} 2. g3 {[%emt 0:00:07]} Nf6 {[%emt 0:02:57]} 3. Bg2 {[%emt 0:00:20]} c6 {[%emt 0:00:27]} 4. O-O {[%emt 0:01:22]} e6 {[%emt 0:03:12]} 5. d4 {[%emt 0:04:13]} Be7 {[%emt 0:00:15]} 6. c4 {[%emt 0:00:23]} O-O {[%emt 0:00:32]} 7. Nbd2 {[%emt 0:01:29]} b6 {[%emt 0:00:48]} 8. Qc2 {[%emt 0:00:11]} Nbd7 {[%emt 0:02:05]} 9. e4 {[%emt 0:00:07]} Bb7 {[%emt 0:02:08]} 10. e5 {[%emt 0:03:05]} Ne8 {[%emt 0:00:04]} 11. cxd5 {[%emt 0:00:04]} cxd5 {[%emt 0:00:20]} 12. Nb1 {[%emt 0:00:12]} Rc8 {[%emt 0:00:42]} 13. Nc3 {[%emt 0:01:52]} b5 {[%emt 0:01:12]} 14. Qd3 {[%emt 0:06:36]} b4 {[%emt 0:01:12]} 15. Ne2 {[%emt 0:00:09]} Nc7 {[%emt 0:03:00]} 16. Qe3 {[%emt 0:06:30]} a5 {[%emt 0:00:15]} 17. Nf4 {[%emt 0:05:04]} Ba6 {[%emt 0:01:04]} 18. Re1 {[%emt 0:02:38]} Re8 {[%emt 0:08:29]} 19. Nh5 {[%emt 0:14:41]} g6 {[%emt 0:03:18]} 20. Nf4 {[%emt 0:01:49]} Bf8 {[%emt 0:00:05]} 21. h4 {[%emt 0:02:17]} Nb6 {[%emt 0:03:48]} 22. Nh3 {[%emt 0:02:40]} Nc4 {[%emt 0:05:34]} 23. Qf4 {[%emt 0:00:29]} Qd7 {[%emt 0:04:21]} 24. Nh2 {[%emt 0:07:09]} Bg7 {[%emt 0:04:01]} 25. Ng4 {[%emt 0:02:30]} Qe7 {[%emt 0:07:15]} 26. h5 {[%emt 0:05:05]} a4 {[%emt 0:02:56]} 27. hxg6 {[%emt 0:06:06]} fxg6 {[%emt 0:02:24]} 28. Nf6+ {[%emt 0:00:10]} Kh8 {[%emt 0:00:49]} 29. Qh4 1-0

[Event "AUT-ch 2018"]
[Site "Vienna"]
[Date "2018.07.26"]
[Round "6"]
[White "Schwabeneder, Florian"]
[Black "Mostbauer, Florian"]
[Result "1-0"]
[ECO "B13"]
[WhiteElo "2431"]
[BlackElo "2319"]
[Annotator "NA"]
[PlyCount "87"]
[EventDate "2018.07.22"]
[EventType "swiss"]
[EventCountry "AUT"]
[SourceTitle "playchess.com"]
[Source "ChessBase"]
[SourceQuality "1"]
[TimeControl "40/5400+30:1800+30"]

1. e4 {[%emt 0:00:00]} c6 {[%emt 0:00:10]} 2. d4 {[%emt 0:00:01]} d5 {[%emt 0:00:11]} 3. exd5 {[%emt 0:00:07]} cxd5 {[%emt 0:00:07]} 4. Nf3 {[%emt 0:00:17]} Nc6 {[%emt 0:00:39]} 5. Bb5 {[%emt 0:00:46]} Qa5+ {[%emt 0:06:16]} 6. Nc3 {[%emt 0:00:13]} Nf6 {[%emt 0:01:58]} 7. Ne5 {[%emt 0:16:38]} Bd7 {[%emt 0:00:54]} 8. Nxd7 {[%emt 0:02:32]} Nxd7 {[%emt 0:00:10]} 9. O-O {[%emt 0:00:28]} a6 {[%emt 0:02:48]} 10. Bxc6 {[%emt 0:11:48]} bxc6 {[%emt 0:00:11]} 11. Re1 {[%emt 0:00:18]} e6 {[%emt 0:10:25]} 12. Qg4 {[%emt 0:05:58]} Nf6 {[%emt 0:13:32]} 13. Qg5 {[%emt 0:17:42]} Qb6 {[%emt 0:12:54]} 14. Qg3 {[%emt 0:08:33]} Be7 {[%emt 0:09:50]} 15. Qd3 {[%emt 0:13:55]} O-O {[%emt 0:04:25]} 16. Re3 {[%emt 0:05:44]} Rfc8 {[%emt 0:03:37]} 17. Na4 {[%emt 0:04:29]} Qb5 {[%emt 0:00:59]} 18. Qxb5 {[%emt 0:00:30]} cxb5 {[%emt 0:00:23]} 19. Nb6 {[%emt 0:00:07]} Ne4 {[%emt 0:00:24]} 20. c3 {[%emt 0:01:39]} Rab8 {[%emt 0:05:03]} 21. Nxc8 {[%emt 0:00:08]} Rxc8 {[%emt 0:00:05]} 22. Re2 {[%emt 0:01:27]} h6 {[%emt 0:01:44]} 23. f3 {[%emt 0:01:55]} Nd6 {[%emt 0:00:17]} 24. Kf2 {[%emt 0:00:25]} b4 {[%emt 0:04:42]} 25. cxb4 {[%emt 0:00:37]} Nf5 {[%emt 0:00:09]} 26. Be3 {[%emt 0:00:27]} Rc4 {[%emt 0:00:08]} 27. a3 {[%emt 0:01:50]} Bf6 {[%emt 0:00:12]} 28. Rd1 {[%emt 0:00:52]} Nxd4 {[%emt 0:00:40]} 29. Bxd4 {[%emt 0:00:26]} Bxd4+ {[%emt 0:00:07]} 30. Kf1 {[%emt 0:00:34]} e5 {[%emt 0:00:07]} 31. Red2 {[%emt 0:01:20]} g5 {[%emt 0:00:10]} 32. g4 {[%emt 0:02:16]} Kg7 {[%emt 0:00:54]} 33. Ke2 {[%emt 0:01:20]} f5 {[%emt 0:00:08]} 34. Rxd4 {[%emt 0:00:50]} exd4 {[%emt 0:00:07]} 35. Kd3 {[%emt 0:00:07]} Kf6 {[%emt 0:00:35]} 36. Re1 {[%emt 0:00:12]} f4 {[%emt 0:00:10]} 37. Rh1 {[%emt 0:00:49]} Rc7 {[%emt 0:00:39]} 38. h4 {[%emt 0:00:26]} Re7 {[%emt 0:00:06]} 39. hxg5+ {[%emt 0:00:09]} Kxg5 {[%emt 0:01:24]} 40. Kxd4 {[%emt 0:00:58]} Re3 {[%emt 0:30:27]} 41. Rh3 {[%emt 0:04:08]} Rb3 {[%emt 0:00:00]} 42. Kxd5 {[%emt 0:00:12]} Rxb2 {[%emt 0:00:00]} 43. Rh5+ {[%emt 0:00:09]} Kg6 {[%emt 0:00:00]} 44. Ke4 {[%emt 0:00:12]} 1-0

[Event "AUT-ch 2018"]
[Site "Vienna"]
[Date "2018.07.26"]
[Round "6"]
[White "Froewis, Georg"]
[Black "Diermair, Andreas"]
[Result "1/2-1/2"]
[ECO "A00"]
[WhiteElo "2427"]
[BlackElo "2508"]
[Annotator "ChessBase"]
[PlyCount "94"]
[EventDate "2018.07.22"]
[EventType "swiss"]
[EventCountry "AUT"]
[SourceTitle "playchess.com"]
[Source "ChessBase"]
[SourceQuality "1"]
[TimeControl "40/5400+30:1800+30"]

1. g3 {[%emt 0:00:00]} e5 {[%emt 0:01:16]} 2. Bg2 {[%emt 0:00:00]} d5 {[%emt 0:00:06]} 3. d3 {[%emt 0:00:06]} Nf6 {[%emt 0:00:24]} 4. Nf3 {[%emt 0:01:43]} Bd6 {[%emt 0:00:40]} 5. O-O {[%emt 0:01:50]} O-O {[%emt 0:01:56]} 6. Nc3 {[%emt 0:00:29]} c6 {[%emt 0:04:34]} 7. e4 {[%emt 0:00:15]} dxe4 {[%emt 0:00:12]} 8. dxe4 {[%emt 0:00:16]} Na6 {[%emt 0:01:55]} 9. Qe2 {[%emt 0:06:41]} Nc5 {[%emt 0:12:04]} 10. Rd1 {[%emt 0:00:11]} Qc7 {[%emt 0:01:00]} 11. Be3 {[%emt 0:11:21]} Re8 {[%emt 0:06:31]} 12. h3 {[%emt 0:11:55]} Ne6 {[%emt 0:06:39]} 13. Nh4 {[%emt 0:08:30]} Bf8 {[%emt 0:03:19]} 14. Rac1 {[%emt 0:11:16]} g6 {[%emt 0:09:18]} 15. Nb1 {[%emt 0:02:06]} b6 {[%emt 0:13:29]} 16. c3 {[%emt 0:00:56]} Bb7 {[%emt 0:00:22]} 17. Qc2 {[%emt 0:04:19]} Rac8 {[%emt 0:01:02]} 18. Nd2 {[%emt 0:01:50]} c5 {[%emt 0:03:17]} 19. Bf1 {[%emt 0:02:03]} Qc6 {[%emt 0:02:18]} 20. f3 {[%emt 0:01:21]} Nh5 {[%emt 0:02:34]} 21. Kh2 {[%emt 0:00:42]} b5 {[%emt 0:00:43]} 22. b3 {[%emt 0:03:03]} a6 {[%emt 0:01:24]} 23. Ng2 {[%emt 0:02:02]} Qc7 {[%emt 0:02:25]} 24. Be2 {[%emt 0:02:21]} Qe7 {[%emt 0:05:39]} 25. Nf1 {[%emt 0:02:03]} Qf6 {[%emt 0:01:23]} 26. Qd2 {[%emt 0:01:30]} Red8 {[%emt 0:01:08]} 27. Qe1 {[%emt 0:00:08]} Re8 {[%emt 0:02:22]} 28. Qd2 {[%emt 0:05:51]} Bc6 {[%emt 0:00:21]} 29. Qe1 {[%emt 0:00:12]} Rc7 {[%emt 0:01:36]} 30. Qf2 {[%emt 0:02:16]} Qg7 {[%emt 0:01:25]} 31. Bd2 {[%emt 0:03:28]} f5 {[%emt 0:04:22]} 32. exf5 {[%emt 0:04:11]} gxf5 {[%emt 0:00:02]} 33. f4 {[%emt 0:00:33]} Nf6 {[%emt 0:01:18]} 34. Bf3 {[%emt 0:03:05]} Ne4 {[%emt 0:02:01]} 35. Bxe4 {[%emt 0:00:37]} Bxe4 {[%emt 0:00:07]} 36. fxe5 {[%emt 0:00:34]} Qxe5 {[%emt 0:01:01]} 37. Bf4 {[%emt 0:01:16]} Nxf4 {[%emt 0:00:16]} 38. Nxf4 {[%emt 0:00:12]} Bh6 {[%emt 0:03:12]} 39. Nd2 {[%emt 0:01:32]} Rf7 {[%emt 0:03:51]} 40. Re1 {[%emt 0:01:19]} Qc7 {[%emt 0:30:48]} 41. Re2 {[%emt 0:34:37]} Bc6 {[%emt 0:00:00]} 42. Rxe8+ {[%emt 0:00:00]} Bxe8 {[%emt 0:00:00]} 43. Re1 {[%emt 0:00:00]} Bc6 {[%emt 0:00:00]} 44. Nf1 {[%emt 0:00:00]} Re7 {[%emt 0:00:00]} 45. Ne3 {[%emt 0:00:00]} Re4 {[%emt 0:00:00]} 46. Nxf5 {[%emt 0:00:00]} Bxf4 {[%emt 0:00:00]} 47. gxf4 {[%emt 0:00:00]} Rxe1 {[%emt 0:00:00]} 1/2-1/2

[Event "AUT-ch 2018"]
[Site "Vienna"]
[Date "2018.07.26"]
[Round "6"]
[White "Fauland, Alexander"]
[Black "Schloffer, Jasmin-Denise"]
[Result "0-1"]
[ECO "A39"]
[WhiteElo "2419"]
[BlackElo "2102"]
[Annotator "RC"]
[PlyCount "102"]
[EventDate "2018.07.22"]
[EventType "swiss"]
[EventCountry "AUT"]
[SourceTitle "playchess.com"]
[Source "ChessBase"]
[SourceQuality "1"]
[TimeControl "40/5400+30:1800+30"]

1. Nf3 {[%emt 0:00:00]} Nf6 {[%emt 0:00:06]} 2. c4 {[%emt 0:00:00]} c5 {[%emt 0:00:09]} 3. g3 {[%emt 0:02:11]} Nc6 {[%emt 0:02:01]} 4. Bg2 {[%emt 0:00:48]} g6 {[%emt 0:01:22]} 5. Nc3 {[%emt 0:00:19]} Bg7 {[%emt 0:00:24]} 6. O-O {[%emt 0:00:49]} O-O {[%emt 0:00:35]} 7. d4 {[%emt 0:01:49]} cxd4 {[%emt 0:03:40]} 8. Nxd4 {[%emt 0:00:05]} Qb6 {[%emt 0:04:54]} 9. Nc2 {[%emt 0:03:02]} d6 {[%emt 0:00:56]} 10. b3 {[%emt 0:00:36]} Bd7 {[%emt 0:05:29]} 11. Bb2 {[%emt 0:03:53]} Ne5 {[%emt 0:04:17]} 12. Qd2 {[%emt 0:17:24]} Bc6 {[%emt 0:06:36]} 13. e4 {[%emt 0:02:53]} a5 {[%emt 0:10:10]} 14. Nd4 {[%emt 0:02:05]} Nfd7 {[%emt 0:08:22]} 15. Nxc6 {[%emt 0:07:28]} bxc6 {[%emt 0:03:05]} 16. Na4 {[%emt 0:00:20]} Qa7 {[%emt 0:02:50]} 17. Rad1 {[%emt 0:03:41]} Nb6 {[%emt 0:08:18]} 18. Nxb6 {[%emt 0:10:30]} Qxb6 {[%emt 0:00:09]} 19. Bc3 {[%emt 0:17:30]} Rfd8 {[%emt 0:05:42]} 20. Rb1 {[%emt 0:06:33]} c5 {[%emt 0:06:31]} 21. f4 {[%emt 0:09:11]} Nc6 {[%emt 0:00:21]} 22. Bxg7 {[%emt 0:00:05]} Kxg7 {[%emt 0:00:07]} 23. f5 {[%emt 0:00:04]} Ne5 {[%emt 0:06:15]} 24. f6+ {[%emt 0:01:01]} exf6 {[%emt 0:00:12]} 25. Qf4 {[%emt 0:00:08]} Qc7 {[%emt 0:00:38]} 26. Qxf6+ {[%emt 0:00:06]} Kg8 {[%emt 0:00:06]} 27. Rbd1 {[%emt 0:00:48]} a4 {[%emt 0:05:44]} 28. Rd5 {[%emt 0:01:07]} axb3 {[%emt 0:01:07]} 29. axb3 {[%emt 0:00:09]} Rab8 {[%emt 0:00:54]} 30. Rfd1 {[%emt 0:01:15]} Ng4 {[%emt 0:01:44]} 31. Qf4 {[%emt 0:03:28]} Ne5 {[%emt 0:00:07]} 32. Qf6 {[%emt 0:00:02]} Ng4 {[%emt 0:00:05]} 33. Qg5 {[%emt 0:00:28]} Ne5 {[%emt 0:00:11]} 34. b4 {[%emt 0:00:21]} h6 {[%emt 0:03:31]} 35. Qf6 {[%emt 0:03:55]} Nxc4 {[%emt 0:02:13]} 36. bxc5 {[%emt 0:01:23]} Ne3 {[%emt 0:00:40]} 37. cxd6 {[%emt 0:00:56]} Qb6 {[%emt 0:00:55]} 38. Kh1 {[%emt 0:00:23]} Nxd5 {[%emt 0:00:44]} 39. exd5 {[%emt 0:00:20]} Qxd6 {[%emt 0:00:23]} 40. Qh4 {[%emt 0:00:50]} h5 {[%emt 0:32:46]} 41. Qd4 {[%emt 0:31:45]} Rdc8 {[%emt 0:04:33]} 42. Rf1 {[%emt 0:00:36]} Rb4 {[%emt 0:01:47]} 43. Qf2 {[%emt 0:00:00]} Rc7 {[%emt 0:00:00]} 44. Rd1 {[%emt 0:00:00]} Rcb7 {[%emt 0:00:00]} 45. Qe1 {[%emt 0:00:00]} Rb8 {[%emt 0:00:00]} 46. Rc1 {[%emt 0:00:00]} Rb2 {[%emt 0:00:00]} 47. Qe4 {[%emt 0:00:00]} Qb6 {[%emt 0:00:00]} 48. Qf4 {[%emt 0:00:00]} Rb1 {[%emt 0:00:00]} 49. Rxb1 {[%emt 0:00:00]} Qxb1+ {[%emt 0:00:00]} 50. Bf1 {[%emt 0:00:00]} Rd8 {[%emt 0:00:00]} 51. Qf3 {[%emt 0:00:00]} Rxd5 {[%emt 0:00:00]} 0-1